fUSD/lending_fUSD_20240629
["ID","MTS","AMOUNT","RATE_DAILY","PERIOD"]
[330660897,1719697839652,-500.0,0.00013698,3]
[330660899,1719697839662,-1057.71,0.00013698,3]
[330660901,1719697839672,-870.06,0.00013698,3]
[330660904,1719697839682,-500.0,0.00013698,3]
[330660905,1719697839692,-2288.97,0.00013698,3]
[330660908,1719697839703,-500.0,0.00013698,3]
[330660909,1719697839713,-362.71047964,0.00013698,3]
[330660912,1719697839723,-500.0,0.00013698,3]
[330660914,1719697839733,-1030.74,0.00013698,3]
[330660916,1719697839743,-588.45,0.00013698,3]
[330660918,1719697839752,-500.0,0.00013698,3]
[330660920,1719697839763,-513.85,0.00013698,3]
[330660921,1719697839772,-500.0,0.00013698,3]
[330660923,1719697839782,-836.96,0.00013698,3]
[330660925,1719697839792,-1133.19,0.00013698,3]
[330660927,1719697839803,-500.0,0.00013698,3]
[330660930,1719697839816,-500.0,0.00013698,3]
[330660932,1719697839827,-500.0,0.00013698,3]
[330660933,1719697839836,-500.0,0.00013698,3]
[330660935,1719697839847,-500.0,0.00013698,3]
[330660937,1719697839856,-565.54,0.00013698,3]
[330660939,1719697839867,-571.48,0.00013698,3]
[330660941,1719697839877,-2913.86,0.00013698,3]
[330660943,1719697839887,-1079.16,0.00013698,3]
[330660946,1719697839897,-500.0,0.00013698,3]
[330660947,1719697839906,-636.55,0.00013698,3]
[330660950,1719697839916,-500.0,0.00013698,3]
[330660951,1719697839926,-500.0,0.00013698,3]
[330660954,1719697839936,-500.0,0.00013698,3]
[330660956,1719697839946,-727.69,0.00013698,3]
[330660958,1719697839956,-862.68,0.00013698,3]
[330660959,1719697839966,-601.18,0.00013698,3]
[330660962,1719697839976,-917.7,0.00013698,3]
[330660964,1719697839987,-500.0,0.00013698,3]
[330660966,1719697839997,-500.0,0.00013698,3]
[330660967,1719697840006,-3115.39,0.00013698,3]
[330660969,1719697840016,-500.0,0.00013698,3]
[330660971,1719697840026,-500.0,0.00013698,3]
[330660973,1719697840036,-500.0,0.00013698,3]
[330660976,1719697840046,-500.0,0.00013698,3]
[330660977,1719697840056,-854.03,0.00013698,3]
[330660979,1719697840067,-500.0,0.00013698,3]
[330660981,1719697840076,-500.0,0.00013698,3]
[330660983,1719697840087,-500.0,0.00013698,3]
[330660985,1719697840097,-1402.94,0.00013698,3]
[330660987,1719697840108,-1805.2,0.00013698,3]
[330660989,1719697840118,-500.0,0.00013698,3]
[330660991,1719697840129,-500.0,0.00013698,3]
[330660993,1719697840139,-951.34,0.00013698,3]
[330660995,1719697840149,-735.2,0.00013698,3]
[330660997,1719697840159,-1963.77,0.00013698,3]
[330660999,1719697840168,-506.75,0.00013698,3]
[330661001,1719697840180,-525.86,0.00013698,3]
[330661003,1719697840190,-500.0,0.00013698,3]
[330661005,1719697840200,-500.0,0.00013698,3]
[330661007,1719697840210,-615.08,0.00013698,3]
[330661009,1719697840222,-561.52,0.00013698,3]
[330661012,1719697840232,-500.0,0.00013698,3]
[330661014,1719697840241,-1012.0,0.00013698,3]
[330661016,1719697840250,-500.0,0.00013698,3]
[330661018,1719697840259,-500.0,0.00013698,3]
[330661019,1719697840268,-1036.72,0.00013698,3]
[330661021,1719697840277,-500.0,0.00013698,3]
[330661023,1719697840287,-770.04,0.00013698,3]
[330661026,1719697840296,-948.83,0.00013698,3]
[330661028,1719697840305,-500.0,0.00013698,3]
[330661029,1719697840315,-500.0,0.00013698,3]
[330661031,1719697840324,-810.82,0.00013698,3]
[330661033,1719697840333,-500.0,0.00013698,3]
[330661035,1719697840343,-500.0,0.00013698,3]
[330661037,1719697840352,-1251.58,0.00013698,3]
[330661039,1719697840364,-551.6,0.00013698,3]
[330661042,1719697840375,-1029.44,0.00013698,3]
[330661043,1719697840384,-500.0,0.00013698,3]
[330661046,1719697840393,-1558.67,0.00013698,3]
[330661048,1719697840403,-1033.08,0.00013698,3]
[330661049,1719697840414,-500.0,0.00013698,3]
[330661051,1719697840423,-500.0,0.00013698,3]
[330661053,1719697840433,-615.75,0.00013698,3]
[330661054,1719697840443,-800.76,0.00013698,3]
[330661055,1719697840453,-500.0,0.00013698,3]
[330661056,1719697840463,-500.0,0.00013698,3]
[330661057,1719697840473,-1191.78,0.00013698,3]
[330661058,1719697840482,-500.0,0.00013698,3]
[330661059,1719697840492,-500.0,0.00013698,3]
[330661060,1719697840501,-500.0,0.00013698,3]
[330661061,1719697840511,-615.61397963,0.00013698,3]
[330661062,1719697840521,-500.0,0.00013698,3]
[330661063,1719697840535,-1070.15,0.00013698,3]
[330661064,1719697840547,-1330.56,0.00013698,3]
[330661065,1719697840557,-500.0,0.00013698,3]
[330661066,1719697840568,-500.0,0.00013698,3]
[330661067,1719697840578,-500.0,0.00013698,3]
[330661068,1719697840588,-500.0,0.00013698,3]
[330661069,1719697840597,-500.0,0.00013698,3]
[330661070,1719697840607,-500.0,0.00013698,3]
[330661071,1719697840617,-500.0,0.00013698,3]
[330661072,1719697840628,-1210.18,0.00013698,3]
[330661073,1719697840638,-652.67,0.00013698,3]
[330661074,1719697840647,-1141.91,0.00013698,3]
[330661075,1719697840657,-528.49,0.00013698,3]
[330661076,1719697840667,-500.0,0.00013698,3]
[330661077,1719697840677,-593.77,0.00013698,3]
[330661078,1719697840687,-567.39,0.00013698,3]
[330661079,1719697840697,-1523.82,0.00013698,3]
[330661080,1719697840707,-1328.61,0.00013698,3]
[330661081,1719697840717,-831.37,0.00013698,3]
[330661082,1719697840726,-500.0,0.00013698,3]
[330661083,1719697840736,-812.86,0.00013698,3]
[330661084,1719697840746,-734.19,0.00013698,3]
[330661085,1719697840756,-671.34,0.00013698,3]
[330661086,1719697840766,-500.0,0.00013698,3]
[330661087,1719697840776,-708.61,0.00013698,3]
[330661088,1719697840786,-1932.72,0.00013698,3]
[330661089,1719697840796,-500.0,0.00013698,2]
[330661090,1719697840806,-500.0,0.00013698,2]
[330661091,1719697840816,-557.64,0.00013698,3]
[330661092,1719697840826,-500.0,0.00013698,3]
[330661093,1719697840836,-1643.79,0.00013698,3]
[330661094,1719697840846,-680.319,0.00013698,2]
[330661096,1719697840855,-500.0,0.00013698,3]
[330661098,1719697840865,-1505.88,0.00013698,3]
[330661099,1719697840874,-664.71,0.00013698,3]
[330661101,1719697840884,-993.46,0.00013698,3]
[330661103,1719697840893,-500.0,0.00013698,3]
[330661104,1719697840904,-1870.08,0.00013698,3]
[330661105,1719697840914,-833.32,0.00013698,3]
[330661106,1719697840923,-2689.06,0.00013698,3]
[330661107,1719697840933,-958.0,0.00013698,3]
[330661108,1719697840943,-500.0,0.00013698,3]
[330661109,1719697840952,-500.0,0.00013698,3]
[330661110,1719697840963,-521.34,0.00013698,3]
[330661111,1719697840973,-577.62,0.00013698,3]
[330661112,1719697840982,-524.0,0.00013698,3]
[330661113,1719697840992,-500.0,0.00013698,3]
[330661114,1719697841001,-500.0,0.00013698,3]
[330661115,1719697841012,-539.93,0.00013698,3]
[330661116,1719697841021,-1281.46,0.00013698,3]
[330661117,1719697841035,-707.54,0.00013698,3]
[330661118,1719697841045,-658.65,0.00013698,3]
[330661119,1719697841056,-1446.63,0.00013698,3]
[330661120,1719697841066,-528.37,0.00013698,3]
[330661121,1719697841076,-882.5,0.00013698,3]
[330661122,1719697841085,-500.0,0.00013698,3]
[330661123,1719697841095,-1105.01,0.00013698,3]
[330661124,1719697841105,-500.0,0.00013698,3]
[330661125,1719697841115,-500.0,0.00013698,3]
[330661126,1719697841124,-1668.36,0.00013698,3]
[330661127,1719697841135,-603.2,0.00013698,3]
[330661128,1719697841145,-500.0,0.00013698,3]
[330661129,1719697841154,-998.81,0.00013698,3]
[330661130,1719697841164,-500.0,0.00013698,3]
[330661131,1719697841174,-744.78,0.00013698,3]
[330661132,1719697841184,-500.0,0.00013698,3]
[330661133,1719697841194,-514.21,0.00013698,3]
[330661134,1719697841203,-1885.59,0.00013698,3]
[330661135,1719697841214,-1284.1,0.00013698,3]
[330661136,1719697841224,-1641.41,0.00013698,3]
[330661137,1719697841233,-967.66,0.00013698,3]
[330661138,1719697841243,-1605.96,0.00013698,3]
[330661139,1719697841253,-945.01,0.00013698,3]
[330661140,1719697841263,-500.0,0.00013698,3]
[330661141,1719697841272,-500.0,0.00013698,3]
[330661142,1719697841282,-500.0,0.00013698,3]
[330661143,1719697841292,-1263.05,0.00013698,3]
[330661144,1719697841302,-227.77082062,0.00013698,2]
[330661145,1719697841313,-500.0,0.00013698,3]
[330661146,1719697841323,-1428.54,0.00013698,3]
[330661147,1719697841334,-1697.34,0.00013698,3]
[330661148,1719697841344,-500.0,0.00013698,3]
[330661149,1719697841354,-764.82,0.00013698,3]
[330661150,1719697841367,-1007.82,0.00013698,3]
[330661151,1719697841380,-803.08,0.00013698,3]
[330661152,1719697841390,-500.0,0.00013698,3]
[330661153,1719697841400,-1297.68,0.00013698,3]
[330661154,1719697841410,-500.0,0.00013698,3]
[330661155,1719697841420,-1256.4,0.00013698,3]
[330661156,1719697841431,-905.93,0.00013698,3]
[330661157,1719697841443,-500.0,0.00013698,3]
[330661158,1719697841454,-1063.17,0.00013698,3]
[330661159,1719697841464,-1953.67,0.00013698,3]
[330661160,1719697841474,-1317.15,0.00013698,3]
[330661161,1719697841484,-500.0,0.00013698,3]
[330661162,1719697841494,-2152.85,0.00013698,3]
[330661163,1719697841504,-770.65,0.00013698,3]
[330661164,1719697841514,-500.0,0.00013698,3]
[330661165,1719697841524,-500.0,0.00013698,3]
[330661166,1719697841534,-166.57529299,0.00013698,2]
[330661167,1719697841544,-532.41,0.00013698,3]
[330661168,1719697841554,-2409.49,0.00013698,3]
[330661169,1719697841564,-500.0,0.00013698,3]
[330661170,1719697841573,-1020.3,0.00013698,3]
[330661171,1719697841584,-500.0,0.00013698,3]
[330661172,1719697841595,-500.0,0.00013698,3]
[330661173,1719697841605,-500.0,0.00013698,3]
[330661174,1719697841614,-500.0,0.00013698,3]
[330661175,1719697841625,-500.0,0.00013698,3]
[330661176,1719697841635,-500.0,0.00013698,3]
[330661177,1719697841649,-1043.43,0.00013698,3]
[330661178,1719697841659,-500.0,0.00013698,3]
[330661179,1719697841669,-500.0,0.00013698,3]
[330661180,1719697841679,-500.0,0.00013698,3]
[330661181,1719697841689,-500.0,0.00013698,3]
[330661182,1719697841699,-1653.0,0.00013698,3]
[330661183,1719697841709,-500.0,0.00013698,3]
[330661184,1719697841719,-500.0,0.00013698,3]
[330661185,1719697841728,-881.29,0.00013698,3]
[330661186,1719697841738,-500.0,0.00013698,3]
[330661187,1719697841748,-1135.91,0.00013698,3]
[330661188,1719697841758,-518.14,0.00013698,3]
[330661189,1719697841767,-500.0,0.00013698,3]
[330661190,1719697841778,-500.0,0.00013698,3]
[330661191,1719697841787,-827.18,0.00013698,3]
[330661192,1719697841797,-500.0,0.00013698,3]
[330661193,1719697841807,-1104.85,0.00013698,3]
[330661194,1719697841817,-500.0,0.00013698,3]
[330661195,1719697841827,-1977.24,0.00013698,3]
[330661196,1719697841836,-1395.85,0.00013698,3]
[330661197,1719697841846,-500.0,0.00013698,3]
[330661198,1719697841855,-500.0,0.00013698,3]
[330661199,1719697841865,-500.0,0.00013698,3]
[330661200,1719697841875,-500.0,0.00013698,3]
[330661201,1719697841885,-2002.8,0.00013698,3]
[330661202,1719697841894,-500.0,0.00013698,3]
[330661203,1719697841904,-1107.12,0.00013698,3]
[330661204,1719697841914,-578.86,0.00013698,3]
[330661205,1719697841924,-1145.37,0.00013698,3]
[330661206,1719697841933,-1357.05,0.00013698,3]
[330661207,1719697841943,-500.0,0.00013698,3]
[330661208,1719697841953,-552.06852582,0.00013698,3]
[330661209,1719697841962,-1325.74,0.00013698,3]
[330661210,1719697841972,-612.88,0.00013698,3]
[330661211,1719697841982,-531.3,0.00013698,3]
[330661212,1719697841991,-500.0,0.00013698,3]
[330661213,1719697842001,-1583.18,0.00013698,3]
[330661214,1719697842011,-1903.53,0.00013698,3]
[330661215,1719697842021,-500.0,0.00013698,3]
[330661216,1719697842030,-261.95624225,0.00013698,3]
[330661217,1719697842082,-712.72375775,0.00013698,3]
[330661218,1719697842092,-1173.45,0.00013698,3]
[330661219,1719697842102,-655.58,0.00013698,3]
[330661220,1719697842112,-24.936073,0.00013698,3]
[330661221,1719697842156,-250.0,0.00012587,2]
[330661222,1719697842166,-1046.723927,0.00013698,3]
[330661223,1719697842176,-1289.06,0.00013698,3]
[330661224,1719697842186,-500.0,0.00013698,3]
[330661225,1719697842196,-500.0,0.00013698,3]
[330661226,1719697842205,-1588.5,0.00013698,3]
[330661227,1719697842215,-500.0,0.00013698,3]
[330661228,1719697842225,-500.0,0.00013698,3]
[330661229,1719697842235,-698.01,0.00013698,3]
[330661230,1719697842244,-721.94,0.00013698,3]
[330661231,1719697842254,-500.0,0.00013698,3]
[330661232,1719697842264,-1731.8,0.00013698,3]
[330661233,1719697842274,-500.0,0.00013698,3]
[330661234,1719697842283,-1201.53,0.00013698,3]
[330661235,1719697842293,-1285.08,0.00013698,3]
[330661236,1719697842302,-500.0,0.00013698,3]
[330661237,1719697842312,-1686.09,0.00013698,3]
[330661238,1719697842322,-500.0,0.00013698,3]
[330661239,1719697842331,-500.0,0.00013698,3]
[330661240,1719697842341,-500.0,0.00013698,3]
[330661241,1719697842352,-45646.3,0.00013698,3]
[330661242,1719697842363,-500.0,0.00013698,3]
[330661243,1719697842374,-500.0,0.00013698,3]
[330661244,1719697842384,-1850.97,0.00013698,3]
[330661245,1719697842393,-883.33,0.00013698,3]
[330661246,1719697842403,-1153.77,0.00013698,3]
[330661247,1719697842413,-500.0,0.00013698,3]
[330661248,1719697842423,-740.63,0.00013698,3]
[330661249,1719697842433,-500.0,0.00013698,3]
[330661250,1719697842445,-1824.49,0.00013698,3]
[330661251,1719697842455,-500.0,0.00013698,3]
[330661252,1719697842464,-952.13,0.00013698,3]
[330661253,1719697842474,-1348.05,0.00013698,3]
[330661254,1719697842483,-1236.2,0.00013698,3]
[330661255,1719697842493,-1015.54,0.00013698,3]
[330661256,1719697842502,-500.0,0.00013698,3]
[330661257,1719697842512,-3244.88,0.00013698,3]
[330661258,1719697842522,-1365.55,0.00013698,3]
[330661259,1719697842531,-500.0,0.00013698,3]
[330661260,1719697842982,-703.01,0.00013698,3]
[330661261,1719697843001,-500.0,0.00013698,3]
[330661262,1719697843011,-5853.89,0.00013698,3]
[330661263,1719697843020,-500.0,0.00013698,3]
[330661264,1719697843029,-933.24,0.00013698,3]
[330661265,1719697843039,-708.25,0.00013698,2]
[330661266,1719697843049,-500.0,0.00013698,3]
[330661267,1719697843059,-1074.21,0.00013698,3]
[330661269,1719697843068,-585.7,0.00013698,3]
[330661270,1719697843077,-500.0,0.00013698,3]
[330661271,1719697843086,-1013.7,0.00013698,3]
[330661272,1719697843096,-626.74788847,0.00013698,3]
[330661273,1719697843105,-775.91,0.00013698,3]
[330661274,1719697843115,-500.0,0.00013698,3]
[330661275,1719697843125,-1851.76,0.00013698,3]
[330661276,1719697843134,-645.47,0.00013698,3]
[330661277,1719697843143,-2091.76,0.00013698,3]
[330661278,1719697843153,-500.0,0.00013698,3]
[330661279,1719697843163,-1482.82,0.00013698,3]
[330661280,1719697843172,-549.88,0.00013698,3]
[330661281,1719697843182,-500.0,0.00013698,3]
[330661282,1719697843191,-500.0,0.00013698,3]
[330661283,1719697843200,-1075.72,0.00013698,3]
[330661286,1719697843210,-500.0,0.00013698,3]
[330661288,1719697843220,-500.0,0.00013698,3]
[330661291,1719697843229,-500.0,0.00013698,3]
[330661293,1719697843239,-1439.6,0.00013698,3]
[330661295,1719697843249,-500.0,0.00013698,3]
[330661296,1719697843258,-966.29,0.00013698,3]
[330661297,1719697843268,-3693.53,0.00013698,3]
[330661298,1719697843277,-1322.17,0.00013698,3]
[330661299,1719697843287,-1867.92,0.00013698,3]
[330661300,1719697843296,-500.0,0.00013698,3]
[330661301,1719697843306,-500.0,0.00013698,3]
[330661302,1719697843316,-742.11,0.00013698,3]
[330661303,1719697843325,-500.0,0.00013698,3]
[330661304,1719697843335,-1676.42,0.00013698,3]
[330661305,1719697843345,-860.95,0.00013698,3]
[330661306,1719697843355,-500.0,0.00013698,3]
[330661307,1719697843367,-500.0,0.00013698,3]
[330661308,1719697843377,-625.47,0.00013698,3]
[330661309,1719697843386,-684.56,0.00013698,3]
[330661310,1719697843396,-500.0,0.00013698,3]
[330661311,1719697843406,-783.17,0.00013698,3]
[330661312,1719697843416,-1574.73,0.00013698,3]
[330661313,1719697843425,-733.26,0.00013698,3]
[330661314,1719697843435,-500.0,0.00013698,3]
[330661315,1719697843447,-500.0,0.00013698,3]
[330661316,1719697843456,-837.81,0.00013698,3]
[330661317,1719697843466,-500.0,0.00013698,3]
[330661318,1719697843475,-500.0,0.00013698,3]
[330661319,1719697843485,-500.0,0.00013698,3]
[330661320,1719697843495,-5685.01,0.00013698,3]
[330661321,1719697843505,-500.0,0.00013698,3]
[330661322,1719697843514,-500.0,0.00013698,3]
[330661323,1719697843523,-500.0,0.00013698,3]
[330661324,1719697843533,-505.28,0.00013698,3]
[330661325,1719697843542,-500.0,0.00013698,3]
[330661326,1719697843552,-500.0,0.00013698,3]
[330661327,1719697843562,-500.0,0.00013698,3]
[330661328,1719697843571,-500.0,0.00013698,3]
[330661329,1719697843581,-1018.92,0.00013698,3]
[330661330,1719697843590,-1313.08,0.00013698,3]
[330661331,1719697843601,-500.0,0.00013698,3]
[330661332,1719697843611,-500.0,0.00013698,3]
[330661333,1719697843620,-1686.75,0.00013698,3]
[330661334,1719697843630,-909.13,0.00013698,3]
[330661335,1719697843639,-500.0,0.00013698,3]
[330661336,1719697843648,-525.61,0.00013698,3]
[330661338,1719697843658,-500.0,0.00013698,3]
[330661341,1719697843668,-500.0,0.00013698,3]
[330661343,1719697843677,-500.0,0.00013698,3]
[330661345,1719697843687,-1118.48,0.00013698,3]
[330661346,1719697843696,-1145.27,0.00013698,3]
[330661349,1719697843706,-500.0,0.00013698,3]
[330661350,1719697843715,-500.0,0.00013698,3]
[330661353,1719697843724,-1391.8,0.00013698,3]
[330661354,1719697843734,-500.0,0.00013698,3]
[330661357,1719697843744,-500.0,0.00013698,3]
[330661359,1719697843753,-844.99,0.00013698,3]
[330661361,1719697843763,-500.0,0.00013698,3]
[330661363,1719697843772,-5131.41,0.00013698,3]
[330661365,1719697843782,-871.12,0.00013698,3]
[330661366,1719697843791,-2484.8,0.00013698,3]
[330661367,1719697843800,-500.0,0.00013698,3]
[330661368,1719697843810,-1085.2,0.00013698,3]
[330661369,1719697843820,-500.0,0.00013698,3]
[330661370,1719697843829,-500.0,0.00013698,3]
[330661371,1719697843839,-1427.19,0.00013698,3]
[330661372,1719697843848,-500.0,0.00013698,3]
[330661373,1719697843857,-2549.66,0.00013698,3]
[330661374,1719697843867,-500.0,0.00013698,3]
[330661375,1719697843876,-500.0,0.00013698,3]
[330661376,1719697843885,-695.57,0.00013698,3]
[330661377,1719697843895,-1016.52,0.00013698,3]
[330661378,1719697843904,-500.0,0.00013698,3]
[330661379,1719697843914,-500.0,0.00013698,3]
[330661380,1719697843924,-500.0,0.00013698,3]
[330661381,1719697843933,-533.37,0.00013698,3]
[330661382,1719697843943,-2382.38,0.00013698,3]
[330661383,1719697843952,-930.48,0.00013698,3]
[330661384,1719697843962,-1893.42,0.00013698,3]
[330661385,1719697843971,-500.0,0.00013698,3]
[330661387,1719697843980,-1984.05,0.00013698,3]
[330661389,1719697843990,-613.33,0.00013698,3]
[330661390,1719697843999,-561.25,0.00013698,3]
[330661391,1719697844008,-500.0,0.00013698,3]
[330661392,1719697844018,-500.0,0.00013698,3]
[330661393,1719697844027,-500.0,0.00013698,3]
[330661394,1719697844036,-500.0,0.00013698,3]
[330661395,1719697844045,-1247.74,0.00013698,3]
[330661396,1719697844055,-1215.25,0.00013698,3]
[330661397,1719697844065,-2075.91,0.00013698,3]
[330661398,1719697844075,-500.0,0.00013698,3]
[330661399,1719697844084,-666.38,0.00013698,3]
[330661400,1719697844094,-1690.88,0.00013698,3]
[330661401,1719697844104,-500.0,0.00013698,3]
[330661402,1719697844113,-500.0,0.00013698,3]
[330661403,1719697844123,-3206.93,0.00013698,3]
[330661404,1719697844133,-1254.35,0.00013698,3]
[330661405,1719697844143,-2500.0,0.00013698,3]
[330661406,1719697844152,-1508.98,0.00013698,3]
[330661407,1719697844162,-500.0,0.00013698,3]
[330661408,1719697844172,-672.66,0.00013698,3]
[330661409,1719697844184,-500.0,0.00013698,3]
[330661410,1719697844193,-1061.13,0.00013698,3]
[330661411,1719697844202,-854.38,0.00013698,3]
[330661412,1719697844212,-500.0,0.00013698,3]
[330661413,1719697844221,-1295.44,0.00013698,3]
[330661414,1719697844231,-1169.05,0.00013698,3]
[330661415,1719697844240,-911.66,0.00013698,3]
[330661416,1719697844249,-500.0,0.00013698,3]
[330661417,1719697844259,-554.51,0.00013698,3]
[330661418,1719697844268,-500.0,0.00013698,3]
[330661419,1719697844277,-500.0,0.00013698,3]
[330661420,1719697844286,-844.35,0.00013698,3]
[330661421,1719697844296,-658.44,0.00013698,3]
[330661422,1719697844305,-500.0,0.00013698,3]
[330661423,1719697844315,-597.33,0.00013698,3]
[330661424,1719697844324,-500.0,0.00013698,3]
[330661425,1719697844335,-873.63,0.00013698,3]
[330661426,1719697844345,-548.15627054,0.00013698,3]
[330661427,1719697844356,-918.03,0.00013698,3]
[330661428,1719697844370,-500.0,0.00013698,3]
[330661429,1719697844380,-500.0,0.00013698,3]
[330661430,1719697844390,-44.304814,0.00013698,3]
[330661431,1719697844410,-331.0,0.00013698,3]
[330661432,1719697844835,-658.39,0.00013162,2]
[330661433,1719697844846,-4179.38256283,0.00013162,2]
[330661434,1719697844892,-1355.16098852,0.00013162,2]
[330661435,1719697844903,-755.19867312,0.00013162,2]
[330661436,1719697844915,-636.62896853,0.00013162,2]
[330661437,1719697844927,-1129.499998,0.00013162,2]
[330661438,1719697845005,-1285.738809,0.00013162,2]
[330661439,1719697845014,-124.695186,0.00013698,3]
[330661440,1719697845025,-1884.45,0.00013698,3]
[330661441,1719697845035,-500.0,0.00013698,3]
[330661442,1719697845045,-325.52978707,0.00013698,3]
[330661443,1719697845897,-0.00666066,0.00013698,3]
[330661444,1719697845920,-1202.26355227,0.00013698,3]
[330661445,1719697845929,-2299.96,0.00013698,3]
[330661446,1719697845939,-3902.11,0.00013698,3]
[330661447,1719697845948,-772.5,0.00013698,3]
[330661448,1719697845965,-500.0,0.00013698,3]
[330661449,1719697845978,-1870.97,0.00013698,3]
[330661450,1719697845987,-500.0,0.00013698,3]
[330661451,1719697845997,-2490.2,0.00013698,3]
[330661452,1719697846007,-500.0,0.00013698,3]
[330661453,1719697846017,-846.22,0.00013698,3]
[330661454,1719697846026,-872.98,0.00013698,3]
[330661455,1719697846036,-2161.66,0.00013698,3]
[330661456,1719697846045,-500.0,0.00013698,3]
[330661457,1719697846055,-604.3,0.00013698,3]
[330661458,1719697846067,-847.11,0.00013698,3]
[330661459,1719697846076,-500.0,0.00013698,3]
[330661460,1719697846086,-229.22803473,0.00013698,3]
[330661461,1719697846100,-500.0,0.00013698,3]
[330661462,1719697846110,-500.0,0.00013698,3]
[330661463,1719697846120,-500.0,0.00013698,3]
[330661464,1719697846130,-500.0,0.00013698,3]
[330661465,1719697846139,-453.04119418,0.00013698,3]
[330661466,1719697846149,-582.17,0.00013698,3]
[330661467,1719697846160,-588.89,0.00013698,3]
[330661471,1719697846169,-3519.63,0.00013698,3]
[330661473,1719697846179,-500.0,0.00013698,3]
[330661476,1719697846191,-500.0,0.00013698,3]
[330661479,1719697846200,-2599.7,0.00013698,3]
[330661482,1719697846211,-491.5307683,0.00013698,3]
[330661486,1719697846220,-500.0,0.00013698,3]
[330661488,1719697846230,-500.0,0.00013698,3]
[330661491,1719697846239,-500.0,0.00013698,3]
[330661494,1719697846249,-1281.86,0.00013698,3]
[330661497,1719697846259,-500.0,0.00013698,3]
[330661500,1719697846268,-2658.38,0.00013698,3]
[330661503,1719697846278,-534.39,0.00013698,3]
[330661507,1719697846287,-1914.74,0.00013698,3]
[330661510,1719697846297,-1427.54,0.00013698,3]
[330661513,1719697846307,-500.0,0.00013698,3]
[330661516,1719697846320,-500.0,0.00013698,3]
[330661518,1719697846329,-9938.18,0.00013698,3]
[330661520,1719697846339,-1236.84,0.00013698,3]
[330661522,1719697846347,-749.22,0.00013698,3]
[330661525,1719697846357,-2257.43,0.00013698,3]
[330661528,1719697846370,-500.0,0.00013698,3]
[330661531,1719697846380,-500.0,0.00013698,3]
[330661534,1719697846389,-500.0,0.00013698,3]
[330661537,1719697846399,-1289.53,0.00013698,3]
[330661539,1719697846410,-3361.9,0.00013698,3]
[330661540,1719697846420,-500.0,0.00013698,3]
[330661541,1719697846429,-500.0,0.00013698,3]
[330661542,1719697846439,-933.0,0.00013698,3]
[330661543,1719697846451,-500.0,0.00013698,3]
[330661544,1719697846462,-500.0,0.00013698,3]
[330661545,1719697846472,-1659.26,0.00013698,3]
[330661546,1719697846482,-500.0,0.00013698,3]
[330661547,1719697846492,-500.0,0.00013698,3]
[330661548,1719697846502,-269.46899837,0.00013698,3]
[330661656,1719697847731,-584.74,0.00013162,2]
[330661657,1719697847742,-705.4,0.00013162,2]